[Event "Turkish Youth Teams U18 2024"]
[Site "Karaman"]
[Date "2024.04.21"]
[Round "3"]
[White "Durak, Can"]
[Black "Ersoz, Teoman Guney"]
[Result "1-0"]
[ECO "D00"]
[WhiteElo "2446"]
[BlackElo "2123"]
[Annotator "TA"]
[PlyCount "93"]
[EventDate "2024.04.21"]
[EventType "team-tourn"]
[EventCountry "TUR"]
[SourceTitle "playchess.com"]
[Source "ChessBase"]
[SourceQuality "1"]
[TimeControl "5400+30"]

{[%evp 9,93,-1,14,0,0,0,6,-6,26,14,26,35,34,3,31,18,36,40,26,32,40,42,69,52,108,107,104,98,91,85,133,67,62,67,71,75,63,57,94,22,25,28,24,18,16,17,44,41,46,32,51,47,48,46,79,50,82,86,104,79,103,77,125,114,165,168,192,186,192,198,325,315,342,347,326,264,235,235,391,357,375,393,341,230,230,214]} 1. d4 {[%emt 0:03:00]} Nf6 {[%emt 0:01:00]} 2. Bg5 {[%emt 0:00:30]} d5 {[%emt 0:00:30]} 3. e3 {[%emt 0:00:00]} c5 {[%emt 0:03:30]} 4. Bxf6 {[%emt 0:00:00]} gxf6 {[%emt 0:00:00]} 5. dxc5 {[%emt 0:00:30]} e6 {[%emt 0:00:00]} 6. Nf3 {[%emt 0:00:00]} Bxc5 {[%emt 0:00:30]} 7. c4 {[%emt 0:00:00]} dxc4 {[%emt 0:01:30]} 8. Qc2 {[%emt 0:00:30] The position is equal.} Nc6 {[%emt 0:03:30][%cal Bb8c6,Bc6e5,Be5f3][%mdl 32]} 9. Bxc4 {[%emt 0:00:30]} Qe7 {[%emt 0:01:30]} 10. O-O {[%emt 0:00:00]} Bd7 {[%emt 0:07:30]} 11. a3 {[%emt 0:01:00]} Rc8 {[%emt 0:01:30]} 12. Nc3 {[%emt 0:00:30][%cal Bb1c3,Bc3b5,Bb5d4][%mdl 32]} Bd6 {[%emt 0:13:30]} 13. Rad1 {[%emt 0:02:30]} Ne5 {[%emt 0:03:30]} 14. Be2 {[%emt 0:01:30]} Nxf3+ {[%emt 0:09:30]} 15. Bxf3 {[%emt 0:00:30]} Bc6 {[%emt 0:01:30]} 16. Nb5 {[%emt 0:09:30]} Bb8 {[%emt 0:00:30] [#]} (16... Bc5 $1 $14 17. Bxc6+ Rxc6) 17. Nd4 $1 $16 {[%emt 0:04:30] White has more active pieces.} O-O {[%emt 0:09:30]} 18. Bxc6 {[%emt 0:00:30]} bxc6 {[%emt 0:00:30]} 19. Qe4 {[%emt 0:00:30]} (19. Nxc6 $2 {is the wrong capture.} Qc7 20. g3 Qxc6 $19) 19... Qc5 {[%emt 0:02:30] Prevents Nf5.} (19... Qc7 $142 20. Nf3 c5) 20. Rc1 {[%emt 0:01:30]} ({Better is} 20. b4 $16 Qh5 21. g3 (21. Nxc6 $2 Qxh2#)) 20... Qd5 $14 {[%emt 0:01:30]} 21. Qh4 {[%emt 0:00:00][%cal Of2f4] [#] f4! would now be deadly.} c5 {[%emt 0:00:30]} 22. Nf3 {[%emt 0:00:00][%cal Oe3e4] aiming for e4!} Qf5 {[%emt 0:00:30]} 23. Rc4 {[%emt 0:04:30] Hoping for Rg4+.} Kh8 {[%emt 0:01:30]} 24. Qe4 {[%emt 0:07:30]} ({White should try} 24. e4 $16 Qg6 25. Rfc1) 24... Qxe4 $11 {[%emt 0:01:30]} 25. Rxe4 {[%emt 0:00:30]} Bd6 {[%emt 0:02:30]} 26. Ra4 {[%emt 0:00:30][%cal Be4a4,Ba4a5,Ba5b5][%mdl 32]} Rc7 {[%emt 0:01:30]} 27. Nd2 {[%emt 0:01:30]} Rd8 {[%emt 0:01:30][%cal Od6h2]} 28. Nc4 {[%emt 0:00:00]} f5 {[%emt 0:00:30]} 29. Ra5 {[%emt 0:01:00]} Kg7 {[%emt 0:00:30]} 30. Rb5 {[%emt 0:00:30]} Be7 {[%emt 0:03:30][%cal Of5f4]} 31. Rc1 {[%emt 0:00:00]} Rcd7 {[%emt 0:00:30] ( -> ...Rd1+)} 32. Kf1 {[%emt 0:00:00]} Rd5 {[%emt 0:05:30]} 33. Ke2 {[%emt 0:02:30]} Bf6 {[%emt 0:01:30]} 34. Rc2 {[%emt 0:00:30]} Kf8 {[%emt 0:01:30]} 35. a4 {[%emt 0:00:30]} Ke7 {[%emt 0:01:53]} ({Black should play} 35... R8d7) 36. Na5 {[%emt 0:01:30]} Rc8 {[%emt 0:00:20] Dodges Nc6+} (36... R8d7 $16 {was necessary.}) 37. b4 $18 {[%emt 0:02:30]} Be5 {[%emt 0:04:13]} 38. bxc5 {[%emt 0:03:30]} a6 {[%emt 0:03:10]} 39. Rb7+ {[%emt 0:00:30]} Rc7 {[%emt 0:00:25]} (39... Ke8 $142) 40. Nc6+ {[%emt 0:01:30]} Kd7 {[%emt 0:02:57][%cal Od7c6]} 41. Nb8+ {[%emt 0:00:30]} Kc8 {[%emt 0:00:30]} 42. Rxc7+ {[%emt 0:00:30]} Bxc7 {[%emt 0:00:30]} 43. Nxa6 {[%emt 0:00:30]} f4 $2 {[%emt 0:00:30]} (43... Kb7) 44. Nxc7 {[%emt 0:00:30]} Kxc7 {[%emt 0:00:30]} 45. exf4 {[%emt 0:00:30]} Rd4 {[%emt 0:00:30]} 46. Ke3 {[%emt 0:00:30]} Rxa4 {[%emt 0:00:30]} 47. c6 {[%emt 0:00:30] Weighted Error Value: White=0.11 (very precise) /Black=0.22 (precise) .  Mistake:       	White=2     	Black=6      Inaccurate:     	White=3     	Black=7      OK:         	White=18    	Black=13     Best:        	White=2     	---        Strong:       	White=1     	---} 1-0

[Event "Turkish Youth Teams U18 2024"]
[Site "Karaman"]
[Date "2024.04.21"]
[Round "3"]
[White "Camlar, Arda"]
[Black "Oktem, Ege Tuna"]
[Result "1-0"]
[ECO "A08"]
[WhiteElo "2389"]
[BlackElo "2076"]
[Annotator "TA"]
[PlyCount "111"]
[EventDate "2024.04.21"]
[EventType "team-tourn"]
[EventCountry "TUR"]
[SourceTitle "playchess.com"]
[Source "ChessBase"]
[SourceQuality "1"]
[TimeControl "5400+30"]

{[%evp 11,111,-22,0,-23,-13,0,11,0,26,31,27,0,0,0,0,0,13,-11,-12,-18,0,-2,0,0,0,-8,0,6,3,0,0,2,53,58,58,38,34,46,68,38,37,35,91,49,115,115,115,112,121,122,115,115,103,65,66,73,110,106,128,108,111,123,225,141,200,209,241,174,175,132,383,349,381,363,356,296,1316,1189,2022,2010,1741,1619,1690,1553,1733,1708,6954,6380,29982,29983,29984,29984,29985,29986,29987,29988,29996,29994,29995,29996,29996,29997]} 1. Nf3 {[%emt 0:04:00]} d5 {[%emt 0:01:00]} 2. g3 {[%emt 0:00:30]} Nf6 {[%emt 0:00:00]} 3. Bg2 {[%emt 0:00:00]} g6 {[%emt 0:00:00]} 4. O-O {[%emt 0:00:00]} Bg7 {[%emt 0:00:00]} 5. d3 {[%emt 0:00:00]} O-O {[%emt 0:01:00]} 6. c3 {[%emt 0:00:00]} c5 {[%emt 0:01:30]} 7. Bf4 {[%emt 0:00:30]} Nc6 {[%emt 0:01:30]} 8. Ne5 {[%emt 0:00:00]} Nxe5 {[%emt 0:21:30]} 9. Bxe5 {[%emt 0:00:00] The position is equal.} Ne8 {[%emt 0:05:30]} 10. Bxg7 {[%emt 0:01:30]} Kxg7 {[%emt 0:01:30]} 11. Qb3 {[%emt 0:05:30]} Nf6 {[%emt 0:04:30]} 12. c4 {[%emt 0:01:30]} d4 {[%emt 0:00:30]} 13. Nd2 {[%emt 0:05:30][%cal Ob3a3]} Qc7 {[%emt 0:07:30]} 14. a3 {[%emt 0:15:30]} Bd7 {[%emt 0:04:30]} 15. Qc2 {[%emt 0:01:30]} (15. Bxb7 $2 {too greedy.} Rab8 16. Qa2 Qxb7 $19) (15. Qxb7 Qxb7 16. Bxb7 Rab8 $19) 15... Bc6 {[%emt 0:03:30]} 16. Bxc6 {[%emt 0:02:30]} Qxc6 {[%emt 0:00:30]} 17. b4 {[%emt 0:00:30]} b6 {[%emt 0:00:30]} 18. Rfb1 {[%emt 0:00:30]} Rab8 {[%emt 0:07:30]} 19. a4 {[%emt 0:02:30]} e5 {[%emt 0:04:30]} 20. a5 {[%emt 0:02:30]} h5 {[%emt 0:03:30][%cal Oh5h4]} 21. h4 {[%emt 0:00:30]} Ng4 {[%emt 0:08:30]} ({Better is} 21... b5 $11) 22. axb6 {[%emt 0:02:30]} axb6 {[%emt 0:00:30]} 23. Ra6 {[%emt 0:00:00]} Ra8 {[%emt 0:09:21]} 24. b5 {[%emt 0:01:00]} Qc7 {[%emt 0:04:49]} 25. Qa4 {[%emt 0:01:30]} Rab8 {[%emt 0:00:08]} 26. Ra7 {[%emt 0:02:30]} Rb7 {[%emt 0:00:30]} (26... Qd8 $14) 27. Ra1 {[%emt 0:00:30]} (27. Rxb7 {seems wilder.} Qxb7 28. Ra1 Rb8 29. Qa7) 27... Nf6 {[%emt 0:06:50] [#]} (27... Rfb8 $14) 28. Rxb7 $1 $16 {[%emt 0:02:30]} Qxb7 {[%emt 0:00:30]} 29. Qa7 {[%emt 0:00:00]} Rb8 {[%emt 0:00:08]} 30. Qxb7 {[%emt 0:00:00]} Rxb7 {[%emt 0:00:30][%mdl 4096] Endgame. KRN-KRN} 31. Ra8 {[%emt 0:00:00]} Re7 {[%emt 0:01:51]} 32. f3 {[%emt 0:08:00]} Re6 {[%emt 0:00:30]} 33. Rb8 {[%emt 0:00:30]} Rd6 {[%emt 0:00:30]} 34. Kg2 {[%emt 0:00:30]} Nd7 {[%emt 0:01:49]} 35. Rb7 {[%emt 0:01:30] Ne4 is the strong threat.} Nf6 {[%emt 0:00:31]} 36. Kh3 {[%emt 0:01:30] White is more active.} Re6 {[%emt 0:00:30] [#]} (36... Kf8 $16 37. g4 Re6) 37. g4 $1 $18 {[%emt 0:00:30] Strongly threatening g5.} hxg4+ {[%emt 0:00:30]} (37... Kf8 $16) 38. fxg4 {[%emt 0:00:30]} Kf8 {[%emt 0:00:30]} 39. g5 {[%emt 0:00:30]} Nh5 {[%emt 0:00:30]} 40. Kg4 {[%emt 0:00:30]} f5+ $2 {[%emt 0:00:30][%mdl 8192] Black cannot hold the game after this.} (40... Nf4 $16) 41. gxf6 {[%emt 0:00:30]} Nxf6+ {[%emt 0:00:02]} 42. Kf3 {[%emt 0:04:30]} ({And not} 42. Kg5 Nh5 $11) 42... Ke8 {[%emt 0:00:54]} 43. Ne4 {[%emt 0:00:00]} Nxe4 $2 {[%emt 0:00:36]} (43... Nh5 44. Ng5 e4+ 45. Nxe4 Kd8) 44. Kxe4 {[%emt 0:00:00] KR-KR} Kd8 {[%emt 0:00:26]} 45. Kd5 {[%emt 0:00:30]} Rf6 {[%emt 0:00:40]} 46. Kxe5 {[%emt 0:00:30]} Rf2 {[%emt 0:00:00]} 47. Rxb6 {[%emt 0:00:30]} Rxe2+ {[%emt 0:00:04]} 48. Kd6 {[%emt 0:00:30]} Kc8 {[%emt 0:00:56] Against Rb8+} 49. Kxc5 {[%emt 0:00:00]} Rh2 {[%emt 0:00:25]} 50. Rxg6 {[%emt 0:00:00] White mates.} Rxh4 {[%emt 0:00:02]} 51. Kb6 {[%emt 0:00:30]} Rh8 {[%emt 0:01:29]} 52. c5 {[%emt 0:00:30][%cal Bc4c5,Bc5c6][%mdl 32]} Kb8 {[%emt 0:00:00]} 53. c6 {[%emt 0:00:30]} Ka8 {[%emt 0:00:04]} 54. Ka6 {[%emt 0:00:00]} Rf8 {[%emt 0:00:17]} 55. b6 {[%emt 0:00:00]} Kb8 {[%emt 0:00:30]} 56. Rg7 {[%emt 0:00:30] Weighted Error Value: White=0.08 (flawless) /Black=0.38.  Loses game:     	---       	Black=1      Mistake:       	---       	Black=6      Inaccurate:     	White=4     	Black=3      OK:         	White=10    	Black=8      Best:        	White=2     	---        Strong:       	White=2     	---} 1-0

[Event "Turkish Youth Teams U18 2024"]
[Site "Karaman"]
[Date "2024.04.21"]
[Round "3"]
[White "Ince, Taylan Ruzgar"]
[Black "Demirtas, Alper"]
[Result "1/2-1/2"]
[ECO "E11"]
[WhiteElo "2258"]
[BlackElo "2020"]
[Annotator "TA"]
[PlyCount "60"]
[EventDate "2024.04.21"]
[EventType "team-tourn"]
[EventCountry "TUR"]
[SourceTitle "playchess.com"]
[Source "ChessBase"]
[SourceQuality "1"]
[TimeControl "5400+30"]

{[%evp 9,60,4,3,4,2,-4,32,36,43,0,56,54,50,47,54,38,58,41,43,40,66,66,61,33,29,0,16,8,34,0,0,0,0,0,3,-26,22,19,28,29,17,0,14,10,21,0,0,-25,-16,-20,-14,-10,-10]} 1. d4 {[%emt 0:01:00]} d5 {[%emt 0:01:00]} 2. c4 {[%emt 0:00:30]} e6 {[%emt 0:00:30]} 3. Nf3 {[%emt 0:00:30]} Nf6 {[%emt 0:00:30]} 4. g3 {[%emt 0:00:30]} Bb4+ {[%emt 0:00:00]} 5. Bd2 {[%emt 0:00:30]} Be7 {[%emt 0:00:00]} 6. Qc2 {[%emt 0:00:30]} O-O {[%emt 0:00:30]} 7. Bg2 {[%emt 0:00:30]} Nc6 {[%emt 0:03:30]} 8. O-O {[%emt 0:02:30] White is slightly better.} Ne4 {[%emt 0:01:30]} 9. Be3 {[%emt 0:12:30]} f5 {[%emt 0:03:30]} (9... Nd6 $11) 10. Nc3 $14 {[%emt 0:03:30]} Bf6 {[%emt 0:01:30]} 11. Rad1 {[%emt 0:02:30][%cal Of3e5]} Ne7 {[%emt 0:03:30]} 12. Ne5 {[%emt 0:02:30][%cal Rc3e4]} c6 {[%emt 0:02:30]} 13. f3 {[%emt 0:03:30]} Nxc3 {[%emt 0:07:30]} 14. Qxc3 {[%emt 0:09:30]} Bxe5 {[%emt 0:09:30]} 15. dxe5 {[%emt 0:01:30]} b6 {[%emt 0:00:30] Black is weak on the dark squares} 16. Bf2 {[%emt 0:11:30] White is much more active. The black rooks are passive.} Ba6 {[%emt 0:05:30]} 17. b3 {[%emt 0:00:30]} c5 {[%emt 0:03:30]} 18. f4 {[%emt 0:04:30]} Bb7 {[%emt 0:03:30]} 19. Qc2 {[%emt 0:12:30]} Qc7 {[%emt 0:06:30]} 20. Rd2 {[%emt 0:03:30]} Rad8 {[%emt 0:09:30]} 21. Rfd1 {[%emt 0:00:00]} g6 {[%emt 0:01:30]} ({Reject} 21... d4 $6 22. Bxb7 Qxb7 23. e3 $16) 22. Qb2 {[%emt 0:05:00]} Rd7 {[%emt 0:09:30]} ({Much weaker is} 22... d4 23. Bxb7 Qxb7 24. e3 $16) (22... Bc6 $142) 23. b4 $11 {[%emt 0:02:54]} cxb4 {[%emt 0:00:30]} (23... d4 24. Bxb7 Qxb7 25. bxc5 bxc5 26. Qxb7 Rxb7 27. e3 $15) 24. Qxb4 {[%emt 0:01:36]} Rc8 {[%emt 0:04:30]} 25. Qa4 {[%emt 0:04:30]} Bc6 {[%emt 0:02:30]} 26. Qa3 {[%emt 0:00:10]} Kf7 {[%emt 0:00:49]} 27. cxd5 {[%emt 0:05:36]} Bxd5 {[%emt 0:00:52]} 28. e4 {[%emt 0:02:42]} fxe4 {[%emt 0:06:17]} 29. Bxe4 {[%emt 0:00:30]} Qc3 {[%emt 0:00:30]} 30. Qxc3 {[%emt 0:00:30]} Rxc3 {[%emt 0:00:00] Weighted Error Value: White=0.12 (very precise) /Black=0.10 (very precise) .  Mistake:       	---       	Black=2      Inaccurate:     	White=5     	Black=3      OK:         	White=9     	Black=10     Best:        	White=1     	Black=1} 1/2-1/2

[Event "Turkish Youth Teams U18 2024"]
[Site "Karaman"]
[Date "2024.04.21"]
[Round "3"]
[White "Engin, Onur Cinar"]
[Black "Tarhan, Adar"]
[Result "0-1"]
[ECO "C54"]
[WhiteElo "2101"]
[BlackElo "2446"]
[Annotator "TA"]
[PlyCount "52"]
[EventDate "2024.04.21"]
[EventType "team-tourn"]
[EventCountry "TUR"]
[SourceTitle "playchess.com"]
[Source "ChessBase"]
[SourceQuality "1"]
[TimeControl "5400+30"]

{[%evp 17,52,0,0,0,27,28,15,0,0,-12,-11,0,0,0,0,0,0,-3,-2,-279,-289,-292,-289,-779,-771,-696,-630,-1306,-1306,-1306,-1306,-29984,-29985,-29985,-29986,-29991,-29992]} 1. e4 {[%emt 0:01:00]} e5 {[%emt 0:05:00]} 2. Nf3 {[%emt 0:00:00]} Nc6 {[%emt 0:00:30]} 3. Bc4 {[%emt 0:00:00]} Bc5 {[%emt 0:00:00]} 4. c3 {[%emt 0:00:30]} Nf6 {[%emt 0:01:00]} 5. d4 {[%emt 0:00:30]} exd4 {[%emt 0:00:30]} 6. e5 {[%emt 0:00:30]} d5 {[%emt 0:00:00]} 7. Bb5 {[%emt 0:00:30]} Ne4 {[%emt 0:00:00]} 8. cxd4 {[%emt 0:00:30]} Bb6 {[%emt 0:00:00]} 9. Nc3 {[%emt 0:00:00]} O-O {[%emt 0:00:00]} 10. Be3 {[%emt 0:00:00]} Ne7 {[%emt 0:07:30]} 11. O-O {[%emt 0:02:30]} Bg4 {[%emt 0:01:30]} 12. Bd3 {[%emt 0:09:30] The position is equal.} f5 {[%emt 0:00:00]} 13. exf6 {[%emt 0:08:30]} Nxf6 {[%emt 0:00:00]} 14. h3 {[%emt 0:07:30]} Bh5 {[%emt 0:03:30]} 15. g4 {[%emt 0:10:30]} Nxg4 {[%emt 0:07:30]} 16. hxg4 {[%emt 0:00:30]} Bxg4 {[%emt 0:00:30]} 17. Be2 {[%emt 0:00:30]} Nf5 {[%emt 0:03:30] White should prevent ...Bxf3.} 18. Kh1 $2 {[%emt 0:29:30][%mdl 8192] This move loses the game for White.} (18. Ne5 $11 {and White has nothing to worry.} Bh3 19. Nxd5 Nxe3 (19... Qxd5 $2 20. Bc4 $18) (19... Bxf1 20. Bxf1 Nxe3 21. Nxe3 $14) 20. Nxe3) 18... Bxf3+ $19 {[%emt 0:02:30]} 19. Bxf3 {[%emt 0:00:30]} c6 {[%emt 0:01:30] [#] Threatens to win with ...Qh4+.} ({Don't do} 19... Qh4+ 20. Kg2 c6 (20... Nxd4 $2 {loses.} 21. Bxd5+ Kh8 22. Rh1 $18) (20... Bxd4 21. Nxd5 Nxe3+ 22. fxe3 $11) 21. Rh1 Nxe3+ 22. fxe3 Qg5+ 23. Bg4 $17) 20. Re1 $2 {[%emt 0:07:56]} (20. Bxd5+ cxd5 21. Qg4) 20... Qh4+ {[%emt 0:04:30]} 21. Kg2 {[%emt 0:05:10]} Rae8 {[%emt 0:04:30]} 22. Rh1 {[%emt 0:03:19]} Nxe3+ {[%emt 0:02:30]} 23. fxe3 {[%emt 0:00:32]} Qg5+ {[%emt 0:00:00]} 24. Kf2 {[%emt 0:01:54]} Qxe3+ {[%emt 0:00:00] Black mates.} 25. Kg2 {[%emt 0:00:00]} Qg5+ {[%emt 0:00:30]} 26. Kf2 {[%emt 0:01:28]} Qg4 {[%emt 0:00:00] Weighted Error Value: White=1.37/Black=0.08 (flawless) .  Loses game:     	White=1     	---        Mistake:       	White=1     	---        Inaccurate:     	White=1     	Black=1      OK:         	White=3     	Black=7} 0-1

[Event "Turkish Youth Teams U18 2024"]
[Site "Karaman"]
[Date "2024.04.21"]
[Round "3"]
[White "Yildiz, Serdar Murat"]
[Black "Taspinar, Yanki"]
[Result "1/2-1/2"]
[ECO "C58"]
[WhiteElo "2021"]
[BlackElo "2298"]
[Annotator "TA"]
[PlyCount "37"]
[EventDate "2024.04.21"]
[EventType "team-tourn"]
[EventCountry "TUR"]
[SourceTitle "playchess.com"]
[Source "ChessBase"]
[SourceQuality "1"]
[TimeControl "5400+30"]

{[%evp 14,37,28,27,39,18,49,13,10,0,0,0,0,0,0,0,0,0,0,0,0,0,0,0,0,0]} 1. e4 {[%emt 0:01:00]} e5 {[%emt 0:01:00]} 2. Nf3 {[%emt 0:00:30]} Nc6 {[%emt 0:00:30]} 3. Bc4 {[%emt 0:00:00]} Nf6 {[%emt 0:02:30]} 4. Ng5 {[%emt 0:00:00]} d5 {[%emt 0:00:30]} 5. exd5 {[%emt 0:00:00]} Na5 {[%emt 0:00:30]} 6. Bb5+ {[%emt 0:00:00]} c6 {[%emt 0:00:00]} 7. dxc6 {[%emt 0:00:30]} bxc6 {[%emt 0:00:00]} 8. Bd3 {[%emt 0:00:00]} Nd5 {[%emt 0:00:30]} 9. h4 {[%emt 0:00:00][%cal Od1f3]} (9. Nxh7 Nf4 10. Be4 f5 $17) 9... Qc7 {[%emt 0:08:30]} 10. Nc3 {[%emt 0:07:30]} (10. Nxh7 Be7 11. Qh5 g6 $17 (11... Nf4 12. Nf6+ Bxf6 13. Qxh8+ $16)) 10... h6 {[%emt 0:14:30] The position is equal.} 11. Nxd5 {[%emt 0:14:30]} (11. Nf3 {simplifies} Bd6 12. Ne4 O-O 13. Nxd6 Qxd6 14. O-O) 11... cxd5 {[%emt 0:00:00]} 12. Qh5 {[%emt 0:00:30]} Bc5 $1 {[%emt 0:00:00]} 13. b4 {[%emt 0:05:30]} Bxb4 {[%emt 0:00:30] aiming for ...0-0.} 14. Nxf7 {[%emt 0:07:30]} O-O {[%emt 0:00:00]} (14... Qxf7 $2 15. Bg6 (15. Qxe5+ $2 Qe6 $19) 15... O-O 16. Bxf7+ $18) 15. Nxe5 {[%emt 0:02:30] [#] Black must now prevent 0-0.} Rf5 $1 {[%emt 0:00:00]} 16. Qe8+ {[%emt 0:00:30]} (16. Bxf5 $2 {is the wrong capture.} Qxe5+ 17. Qe2 Qxf5 $19 (17... Qxa1 $2 {too greedy.} 18. Qe8+ Bf8 19. O-O $18)) 16... Rf8 {[%emt 0:00:30]} 17. Qh5 {[%emt 0:00:30] Threatens to win with 0-0.} Rf5 $1 {[%emt 0:35:30]} 18. Qe8+ {[%emt 0:00:30]} (18. Bxf5 $2 {loses.} Qxe5+ 19. Qe2 Qxf5 (19... Qxa1 $2 20. Qe8+ Bf8 21. O-O $18) 20. Qe8+ Kh7 $19) 18... Rf8 {[%emt 0:00:30]} 19. Qh5 {[%emt 0:00:30] Weighted Error Value: White=0.05 (flawless) /Black=0.04 (flawless) .  Inaccurate:     	White=1     	Black=1      OK:         	White=7     	Black=3      Best:        	White=1     	Black=2      Strong:       	---       	Black=3} 1/2-1/2

[Event "Turkish Youth Teams U18 2024"]
[Site "Karaman"]
[Date "2024.04.21"]
[Round "3"]
[White "Yilmaz, Kerem Tuna"]
[Black "Dogan, Umut Anil"]
[Result "1/2-1/2"]
[ECO "B12"]
[WhiteElo "2009"]
[BlackElo "1983"]
[Annotator "TA"]
[PlyCount "96"]
[EventDate "2024.04.21"]
[EventType "team-tourn"]
[EventCountry "TUR"]
[SourceTitle "playchess.com"]
[Source "ChessBase"]
[SourceQuality "1"]
[TimeControl "5400+30"]

{[%evp 14,96,18,2,29,-20,0,-13,0,-70,-72,-83,-54,-84,-91,-104,-123,-170,-146,-174,-72,-172,-167,-247,-237,-216,18,-397,0,-445,-447,-589,-385,-576,-565,-574,-381,-441,-285,-491,-360,-360,-337,-356,-341,-357,-338,-343,-288,-292,-238,-242,-231,-230,-225,-233,-231,-268,-237,-275,-208,-274,-264,-260,-276,-278,-250,-241,-222,-225,-233,-314,-327,-321,-331,-317,-315,-425,0,0,0,0,0,0,0]} 1. e4 {[%emt 0:01:00]} c6 {[%emt 0:01:00]} 2. d4 {[%emt 0:00:30]} d5 {[%emt 0:00:30]} 3. e5 {[%emt 0:00:00]} Bf5 {[%emt 0:01:30]} 4. h4 {[%emt 0:00:00]} h5 {[%emt 0:00:30]} 5. c4 {[%emt 0:00:00]} e6 {[%emt 0:01:30]} 6. Nc3 {[%emt 0:00:00]} dxc4 {[%emt 0:07:30]} 7. Bxc4 {[%emt 0:00:30]} Nd7 {[%emt 0:00:30]} 8. Bg5 {[%emt 0:00:00]} Qb6 {[%emt 0:02:30]} 9. Qd2 {[%emt 0:21:00]} (9. Nge2 $142) 9... Ne7 {[%emt 0:00:30]} 10. Nge2 {[%emt 0:02:30]} O-O-O {[%emt 0:10:30][%cal Od7e5]} 11. Qe3 {[%emt 0:09:30]} (11. Qc1 $1 $11) 11... f6 $15 {[%emt 0:03:30]} 12. Bf4 {[%emt 0:02:30]} Ng6 {[%emt 0:16:30]} 13. Bg3 {[%emt 0:29:30]} fxe5 {[%emt 0:02:30]} 14. O-O {[%emt 0:04:30]} Be7 {[%emt 0:09:30]} 15. Na4 {[%emt 0:07:35] [#]} (15. Ne4 $17 {was worth a try.}) 15... Qa5 $1 $19 {[%emt 0:01:30]} 16. Bb3 {[%emt 0:01:38]} Nf6 {[%emt 0:06:30]} (16... Bxh4 17. Bxh4 Nxh4 18. Rad1 $17) (16... Nxh4 $19 {is more deadly. Threatens to win with ...Ng6.} 17. f3 g5) 17. dxe5 {[%emt 0:04:23]} (17. Rad1 $17 {was necessary.}) 17... Ng4 {[%emt 0:00:30][%csl LRe3,LRe5,LRh4]} 18. Qc1 {[%emt 0:03:02]} (18. Qc3 $142 Qxc3 19. Naxc3) 18... N6xe5 {[%emt 0:06:30]} ({But not} 18... Nxh4 19. f3 Nxe5 20. Nf4) 19. Nf4 {[%emt 0:02:07][%cal Of2f3] [#]} Rh6 $2 {[%emt 0:00:30]} (19... g5 $1 $19 {[%cal Rg5h4]} 20. f3 gxf4 21. Qxf4 Bd6 (21... Bc5+ 22. Nxc5 Qxc5+ 23. Kh1 $15) 22. fxg4 Nxg4) 20. Nh3 $2 {[%emt 0:04:10][%mdl 8192]} (20. f3 $11) 20... Rg6 $2 {[%emt 0:02:30]} ({Better is} 20... Nd3 $19 21. Qd1 Ndxf2) 21. Ng5 $2 {[%emt 0:02:55][%mdl 8192]} (21. Nf4 $11 {and White stays safe.}) 21... Nd3 {[%emt 0:00:30]} 22. Qc4 {[%emt 0:01:01]} Nge5 {[%emt 0:01:30]} 23. Qc2 {[%emt 0:01:42]} (23. Bxe5 $142 Qxe5 24. Nf7) 23... Bxg5 {[%emt 0:00:30]} 24. hxg5 {[%emt 0:00:30]} Rxg5 {[%emt 0:00:30]} 25. Qe2 {[%emt 0:00:37]} Rg4 {[%emt 0:02:30] ...h4 is the strong threat.} 26. Nc3 $2 {[%emt 0:01:10]} (26. Rad1) 26... h4 {[%emt 0:01:30]} 27. Bxe5 {[%emt 0:00:09]} Qxe5 {[%emt 0:00:00]} 28. Qxe5 {[%emt 0:01:12]} Nxe5 {[%emt 0:00:00]} 29. f3 {[%emt 0:00:51]} Rg6 {[%emt 0:00:30]} 30. Rad1 {[%emt 0:00:23] Repels Rd2} Rxd1 {[%emt 0:01:30]} 31. Nxd1 {[%emt 0:00:30]} Nd3 {[%emt 0:00:30]} 32. Kh2 {[%emt 0:00:30] Against Bh3} Nf4 {[%emt 0:00:30]} 33. Ne3 {[%emt 0:00:07]} Rf6 {[%emt 0:00:30]} 34. Rd1 {[%emt 0:00:30]} Kc7 {[%emt 0:00:30]} 35. Nc4 {[%emt 0:00:30]} Rf8 {[%emt 0:00:30]} 36. Rd4 {[%emt 0:00:30]} Ng6 {[%emt 0:00:41]} 37. g4 {[%emt 0:00:21]} hxg3+ {[%emt 0:01:23]} 38. Kxg3 {[%emt 0:00:30]} Rh8 {[%emt 0:00:30]} 39. Nd6 {[%emt 0:00:30]} Rh3+ {[%emt 0:00:30]} 40. Kf2 {[%emt 0:00:30]} Ne5 {[%emt 0:00:30]} 41. Ne8+ {[%emt 0:00:30]} Kb6 {[%emt 0:00:30]} 42. Rb4+ {[%emt 0:00:30]} Kc5 {[%emt 0:00:30]} 43. Rxb7 {[%emt 0:00:30]} Rxf3+ {[%emt 0:00:30]} (43... Nxf3 44. Nxg7 Nd4 45. Nxf5 exf5 46. Rxa7 $17) 44. Ke2 {[%emt 0:00:30]} g5 {[%emt 0:00:30]} 45. Rxa7 {[%emt 0:00:30]} g4 $2 {[%emt 0:00:30]} (45... Bd3+ $19 46. Kd2 g4 47. Ra5+ Bb5) 46. Ra5+ $11 {[%emt 0:00:30] The position is equal.} Kd4 {[%emt 0:00:30] Strongly threatening ...Bd3+.} 47. Ra4+ {[%emt 0:00:30]} Kc5 {[%emt 0:00:30]} 48. Ra5+ {[%emt 0:00:30]} Kd4 {[%emt 0:00:00] Weighted Error Value: White=0.78/Black=0.85.  Loses game:     	White=2     	---        Missed win:     	---       	Black=3      Mistake:       	White=7     	Black=1      Inaccurate:     	White=5     	Black=4      OK:         	White=5     	Black=12     Best:        	White=6     	Black=5      Strong:       	---       	Black=1} 1/2-1/2